Workbook

Sheet Information
B1: Straight TL (1) | C1: = | D1: 0.1
B3: Driver Dimensions
B4: Frame Width | C4: = | D4: =8.5*2.54 -> 21.59 | E4: cm | F4: =D4/2.54 -> 8.5 | G4: in | I4: Plot
B5: Mounting Width | C5: = | D5: =7.1*2.54 -> 18.034 | E5: cm | F5: =D5/2.54 -> 7.1 | G5: in | H5: x | I5: Panel A, front baffle
B6: Mounting Depth | C6: = | D6: =4*2.54 -> 10.16 | E6: cm | F6: =D6/2.54 -> 4 | G6: in | H6: x | I6: Panel B, rear baffle
B7: Magnet Width | C7: = | D7: =6*2.54 -> 15.24 | E7: cm | F7: =D7/2.54 -> 6 | G7: in | H7: x | I7: Panel C, top, bottom
B8: Magnet Height | C8: = | D8: =2*2.54 -> 5.08 | E8: cm | F8: =D8/2.54 -> 2 | G8: in | H8: x | I8: Panel D, rear panel
H9: o | I9: Panel E, side panels
B10: Box Parameters | H10: x | I10: Panel F, 1st internal
B11: Width (external) | C11: = | D11: =10*2.54 -> 25.4 | E11: cm | F11: =D11/2.54 -> 10 | G11: in | H11: x | I11: Panel G, 2nd internal
B12: Depth (External) | C12: = | D12: =15*2.54 -> 38.1 | E12: cm | F12: 15 | G12: in | H12: x | I12: Panel H, 2nd internal
B13: Height (External) | C13: = | D13: =49*2.54 -> 124.46 | E13: cm | F13: 49 | G13: in
B14: Panel Thickness | C14: = | D14: =0.75*2.54 -> 1.905 | E14: cm | F14: 0.75 | G14: in | I14: Plot
B15: Panel A Offset | C15: = | D15: 0 | E15: cm | F15: 0 | G15: in | H15: x | I15: Advanced Centerline
B16: Driver Offset | C16: = | D16: 4 | E16: cm | F16: 1.57480315 | G16: in | H16: x | I16: Sample points
H17: x | I17: Driver
B18: Total Vent Area | C18: = | D18: =(D12-5*D14-D15)*(D11-2*D14)/3 -> 205.64475 | E18: cm^2 | F18: =D18/(2.54^2) -> 31.875 | G18: in^2
B19: Baffle Width | C19: = | D19: =D11-2*D40 -> 21.59 | E19: cm | F19: =D19/2.54 -> 8.5 | G19: in
B20: Vent Height | C20: = | D20: =D18/D19 -> 9.525 | E20: cm | F20: =D20/2.54 -> 3.75 | G20: in
B22: HornResp Params
B23: S1 | C23: = | D23: ='Path Calculations'!$P$8 -> 205.64475 | E23: cm^2
B24: S2 | C24: = | D24: =D23 -> 205.64475 | E24: cm^2
B25: S3 | C25: = | D25: ='Path Calculations'!P74 -> 205.64475 | E25: cm^2
B26: L12 | C26: = | D26: =D16+D4/2 -> 14.795 | E26: cm | F26: =D26/2.54 -> 5.82480315 | G26: in
B27: L23 | C27: = | D27: ='Path Calculations'!O74-D26 -> 347.8004802 | E27: cm | F27: =D27/2.54 -> 136.9293229 | G27: in
B28: L (actual) | C28: = | D28: =SUM(D26:D27) -> 362.5954802 | E28: cm | F28: =D28/2.54 -> 142.7541261 | G28: in
B30: L/L12 ratio | C30: = | D30: =D28/D26 -> 24.50797433
B32: Box Design
B33: Vol. (net) | C33: = | D33: =D34-I45 -> 80.57519369 | E33: l. | F33: =(D33*1000/2.54^3)/1728 -> 2.845486111 | G33: cu.ft.
B34: Vol. (gross) | C34: = | D34: =D11*D12*D13/1000 -> 120.4449204 | E34: l. | F34: =D34*0.0353 -> 4.25170569 | G34: cu.ft.
B35: Panels | D35: p | E35: x | F35: y | H35: # | I35: v
B36: =I5 -> Panel A, front baffle | D36: =$D$14 -> 1.905 | E36: =D19 -> 21.59 | F36: ='Panel Calculations'!K26 -> 109.22 | H36: 1 | I36: =F36*E36*D36*H36/10^3 -> 4.492103919
B37: Panel B, rear baffle | D37: =$D$14 -> 1.905 | E37: =E36 -> 21.59 | F37: ='Panel Calculations'!K47 -> 109.22 | H37: 1 | I37: 4.492103919
B38: Panel C, top, bottom | D38: =$D$14 -> 1.905 | E38: =E37+2*D15 -> 21.59 | F38: ='Panel Calculations'!K62 -> 38.1 | H38: 2 | I38: 3.13402599
B39: Panel D, rear panel | D39: =D14 -> 1.905 | E39: =E37 -> 21.59 | F39: ='Panel Calculations'!K75 -> 120.65 | H39: 1 | I39: 4.962207818
B40: Panel E, side panels | D40: =$D$14 -> 1.905 | E40: ='Panel Calculations'!K80 -> 38.1 | F40: ='Panel Calculations'!K81 -> 120.65 | H40: 2 | I40: =F40*E40*D40*H40/10^3 -> 17.51367465
B41: Panel F, 1st internal | D41: =$D$14 -> 1.905 | E41: =E39 -> 21.59 | F41: ='Panel Calculations'!K86 -> 26.67 | H41: 1 | I41: =F41*E41*D41*H41/10^3 -> 1.096909097
B42: Panel G, 2nd internal | D42: =$D$14 -> 1.905 | E42: =E41 -> 21.59 | F42: ='Panel Calculations'!K92 -> 99.695 | H42: 1 | I42: =F42*E42*D42*H42/10^3 -> 4.10035067
B43: Panel H, 2nd internal | D43: =$D$14 -> 1.905 | E43: =E42 -> 21.59 | F43: ='Panel Calculations'!K93 -> 1.905 | H43: 1 | I43: =F43*E43*D43*H43/10^3 -> 0.07835064975
B44: (Offset) | D44: =D15 -> 0 | E44: =E42 -> 21.59 | F44: =F36 -> 109.22 | H44: 1 | I44: =F44*E44*D44*H44/10^3 -> 0
H45: Pnl Vol | I45: =SUM(I36:I44) -> 39.86972671 | J45: l
B48: Filename | C48: = | D48: I:\Users\Brian.Steele\OneDrive\Hornresp\Import\BOXPLAN.TXT
B50: ID | C50: = | D50: 29.00 | J50: =CONCATENATE(B50,C50,D50) -> ID=29.00
B51: Ang | C51: = | D51: 2.0 x PI | J51: =CONCATENATE(B51,C51,D51) -> Ang=2.0 x PI
B52: Eg | C52: = | D52: 2.83 | J52: Eg=2.83
B53: Rg | C53: = | D53: 0 | J53: Rg=0
B54: Fta | C54: = | D54: 0 | J54: Fta=0
B55: S1 | C55: = | D55: =ROUND(D23,0) -> 206 | J55: S1=206
B56: S2 | C56: = | D56: =ROUND(D24,0) -> 206 | J56: S2=206
B57: Par | C57: = | D57: =ROUND(D26,1) -> 14.8 | J57: Par=14.8
B58: F12 | C58: = | D58: 0 | J58: F12=0
B59: S2 | C59: = | D59: =D56 -> 206 | J59: S2=206
B60: S3 | C60: = | D60: =ROUND(D25,0) -> 206 | J60: S3=206
B61: Par | C61: = | D61: =ROUND(D27,1) -> 347.8 | J61: Par=347.8
B62: F23 | C62: = | D62: 0 | J62: F23=0
B63: S3 | C63: = | D63: 0 | J63: S3=0
B64: S4 | C64: = | D64: 0 | J64: S4=0
B65: L34 | C65: = | D65: 0 | J65: L34=0
B66: F34 | C66: = | D66: 0 | J66: F34=0
B67: S4 | C67: = | D67: =D64 -> 0 | J67: S4=0
B68: S5 | C68: = | D68: 0 | J68: S5=0
B69: L45 | C69: = | D69: 0 | J69: =CONCATENATE(B69,C69,D69) -> L45=0
B70: F45 | C70: = | D70: 0 | J70: F45=0
B71: Sd | C71: = | D71: 182 | J71: Sd=182
B72: Bl | C72: = | D72: 7.16 | J72: Bl=7.16
B73: Cms | C73: = | D73: 0.000574 | J73: Cms=0.000574
B74: Rms | C74: = | D74: 2.89 | J74: Rms=2.89
B75: Mmd | C75: = | D75: 83.47 | J75: Mmd=83.47
B76: Le | C76: = | D76: 1 | J76: Le=1
B77: Re | C77: = | D77: 1.6 | J77: Re=1.6
B78: OD | C78: = | D78: 1 | J78: OD=1
B79: Vrc | C79: = | D79: 0 | J79: Vrc=0
B80: Lrc | C80: = | D80: 0 | J80: Lrc=0
B81: Ap1 | C81: = | D81: 0 | J81: Ap1=0
B82: Lp | C82: = | D82: 0 | J82: Lp=0
B83: Vtc | C83: = | D83: 0 | J83: Vtc=0
B84: Atc | C84: = | D84: 0 | J84: Atc=0
B85: Pmax | C85: = | D85: 300 | J85: Pmax=300
B86: Xmax | C86: = | D86: 8 | J86: Xmax=8
B87: Comment | C87: = | D87: BOXPLAN-Export (Straight TL v1) | J87: Comment=BOXPLAN-Export (Straight TL v1)
T92: Axes | U92: x | V92: y
T93: Axis 1 | U93: 0 | V93: 0
U94: =U93 -> 0 | V94: =MAX('Panel Calculations'!C3:D89) -> 124.46
T95: Axis 2 | U95: 0 | V95: 0
U96: =V94 -> 124.46 | V96: =V95 -> 0

Sheet Panel Calculations
B2: Offset | C2: x | D2: y
C3: 0 | D3: 0
B5: Driver | C5: x | D5: y
C6: =C33 -> 1.905 | D6: =D26-Information!D4-Information!D16 -> 96.965 | F6: =IF(Information!$H$17="x",'Panel Calculations'!C6,"") -> 1.905 | G6: =IF(Information!$H$17="x",'Panel Calculations'!D6,"") -> 96.965
C7: =C6 -> 1.905 | D7: =D6+Information!D4 -> 118.555 | F7: =IF(Information!$H$17="x",'Panel Calculations'!C7,"") -> 1.905 | G7: =IF(Information!$H$17="x",'Panel Calculations'!D7,"") -> 118.555
C8: =C7 -> 1.905 | D8: =D7-(Information!D4-Information!D5)/2 -> 116.777 | F8: =IF(Information!$H$17="x",'Panel Calculations'!C8,"") -> 1.905 | G8: =IF(Information!$H$17="x",'Panel Calculations'!D8,"") -> 116.777
C9: =C8+Information!D6-Information!D8 -> 6.985 | D9: =D8-(Information!D5-Information!D7)/2 -> 115.38 | F9: =IF(Information!$H$17="x",'Panel Calculations'!C9,"") -> 6.985 | G9: =IF(Information!$H$17="x",'Panel Calculations'!D9,"") -> 115.38
C10: =C9+Information!D8 -> 12.065 | D10: =D9 -> 115.38 | F10: =IF(Information!$H$17="x",'Panel Calculations'!C10,"") -> 12.065 | G10: =IF(Information!$H$17="x",'Panel Calculations'!D10,"") -> 115.38
C11: =C10 -> 12.065 | D11: =D10-Information!D7 -> 100.14 | F11: =IF(Information!$H$17="x",'Panel Calculations'!C11,"") -> 12.065 | G11: =IF(Information!$H$17="x",'Panel Calculations'!D11,"") -> 100.14
C12: =C9 -> 6.985 | D12: =D11 -> 100.14 | F12: =IF(Information!$H$17="x",'Panel Calculations'!C12,"") -> 6.985 | G12: =IF(Information!$H$17="x",'Panel Calculations'!D12,"") -> 100.14
C13: =C8 -> 1.905 | D13: =D6+(Information!D4-Information!D5)/2 -> 98.743 | F13: =IF(Information!$H$17="x",'Panel Calculations'!C13,"") -> 1.905 | G13: =IF(Information!$H$17="x",'Panel Calculations'!D13,"") -> 98.743
C14: =C13 -> 1.905 | D14: =D6+Information!D4/2 -> 107.76 | F14: =IF(Information!$H$17="x",'Panel Calculations'!C14,"") -> 1.905 | G14: =IF(Information!$H$17="x",'Panel Calculations'!D14,"") -> 107.76
C15: =C12 -> 6.985 | D15: =D14 -> 107.76 | F15: =IF(Information!$H$17="x",'Panel Calculations'!C15,"") -> 6.985 | G15: =IF(Information!$H$17="x",'Panel Calculations'!D15,"") -> 107.76
C16: =C15 -> 6.985 | D16: =D12 -> 100.14 | F16: =IF(Information!$H$17="x",'Panel Calculations'!C16,"") -> 6.985 | G16: =IF(Information!$H$17="x",'Panel Calculations'!D16,"") -> 100.14
C17: =C16 -> 6.985 | D17: =D10 -> 115.38 | F17: =IF(Information!$H$17="x",'Panel Calculations'!C17,"") -> 6.985 | G17: =IF(Information!$H$17="x",'Panel Calculations'!D17,"") -> 115.38
B19: X-axis | C19: =C3 -> 0 | D19: =D3 -> 0
C20: =MAX(C25:D101) -> 124.46 | D20: =D19 -> 0
B22: Y-axis | C22: =C19 -> 0 | D22: =D19 -> 0
C23: =C22 -> 0 | D23: =C20 -> 124.46
I24: dx | J24: dy
B25: =IF(Information!H5="x",Information!I5,"") -> Panel A, front baffle | C25: =Information!D15 -> 0 | D25: =D31 -> 13.335 | F25: =IF($B25<>"",C25,0) -> 0 | G25: =IF($B25<>"",D25,0) -> 13.335
C26: =C25 -> 0 | D26: =D67 -> 122.555 | F26: =IF($B25<>"",C26,0) -> 0 | G26: =IF($B25<>"",D26,0) -> 122.555 | I26: =C25-C26 -> 0 | J26: -109.22 | K26: =(I26^2+J26^2)^0.5 -> 109.22
C27: =C26+Information!D36 -> 1.905 | D27: =D26 -> 122.555 | F27: =IF($B25<>"",C27,0) -> 1.905 | G27: =IF($B25<>"",D27,0) -> 122.555 | I27: -1.905 | J27: 0 | K27: =(I27^2+J27^2)^0.5 -> 1.905
C28: =C25 -> 0 | D28: =D27 -> 122.555 | F28: =IF($B25<>"",C28,0) -> 0 | G28: =IF($B25<>"",D28,0) -> 122.555 | I28: 1.905 | J28: 0 | K28: =(I28^2+J28^2)^0.5 -> 1.905
C29: =C25 -> 0 | D29: =D25 -> 13.335 | F29: =IF($B25<>"",C29,0) -> 0 | G29: =IF($B25<>"",D29,0) -> 13.335 | I29: 0 | J29: 109.22 | K29: =(I29^2+J29^2)^0.5 -> 109.22
B31: =IF(Information!H5="x",Information!I5,"") -> Panel A, front baffle | C31: =C25 -> 0 | D31: =D88 -> 13.335 | F31: =IF($B31<>"",C31,0) -> 0 | G31: =IF($B31<>"",D31,0) -> 13.335
C32: =C26 -> 0 | D32: =D6 -> 96.965 | F32: =IF($B31<>"",C32,0) -> 0 | G32: =IF($B31<>"",D32,0) -> 96.965 | I32: =C31-C32 -> 0 | J32: -83.63 | K32: =(I32^2+J32^2)^0.5 -> 83.63
C33: =C32+Information!D36 -> 1.905 | D33: =D32 -> 96.965 | F33: =IF($B31<>"",C33,0) -> 1.905 | G33: =IF($B31<>"",D33,0) -> 96.965 | I33: -1.905 | J33: 0 | K33: =(I33^2+J33^2)^0.5 -> 1.905
C34: =C33 -> 1.905 | D34: =D31 -> 13.335 | F34: =IF($B31<>"",C34,0) -> 1.905 | G34: =IF($B31<>"",D34,0) -> 13.335 | I34: 0 | J34: 83.63 | K34: =(I34^2+J34^2)^0.5 -> 83.63
C35: =C31 -> 0 | D35: =D31 -> 13.335 | F35: =IF($B31<>"",C35,0) -> 0 | G35: =IF($B31<>"",D35,0) -> 13.335 | I35: 1.905 | J35: 0 | K35: =(I35^2+J35^2)^0.5 -> 1.905
B37: =IF(Information!H5="x",Information!I5,"") -> Panel A, front baffle | C37: =C25 -> 0 | D37: =D26 -> 122.555 | F37: =IF($B37<>"",C37,0) -> 0 | G37: =IF($B37<>"",D37,0) -> 122.555
C38: =C37 -> 0 | D38: =D7 -> 118.555 | F38: =IF($B37<>"",C38,0) -> 0 | G38: =IF($B37<>"",D38,0) -> 118.555 | I38: =C37-C38 -> 0 | J38: 4 | K38: =(I38^2+J38^2)^0.5 -> 4
C39: =C33 -> 1.905 | D39: =D38 -> 118.555 | F39: =IF($B37<>"",C39,0) -> 1.905 | G39: =IF($B37<>"",D39,0) -> 118.555 | I39: -1.905 | J39: 0 | K39: =(I39^2+J39^2)^0.5 -> 1.905
C40: =C34 -> 1.905 | D40: =D37 -> 122.555 | F40: =IF($B37<>"",C40,0) -> 1.905 | G40: =IF($B37<>"",D40,0) -> 122.555 | I40: 0 | J40: -4 | K40: =(I40^2+J40^2)^0.5 -> 4
C41: =C37 -> 0 | D41: =D37 -> 122.555 | F41: =IF($B37<>"",C41,0) -> 0 | G41: =IF($B37<>"",D41,0) -> 122.555 | I41: 1.905 | J41: 0 | K41: =(I41^2+J41^2)^0.5 -> 1.905
B43: =IF(Information!H6="x",Information!I6,"") -> Panel B, rear baffle | C43: =C39 -> 1.905 | D43: =D31 -> 13.335 | F43: =IF($B43<>"",C43,0) -> 1.905 | G43: =IF($B43<>"",D43,0) -> 13.335
C44: =C43+Information!D14 -> 3.81 | D44: =D43 -> 13.335 | F44: =IF($B43<>"",C44,0) -> 3.81 | G44: =IF($B43<>"",D44,0) -> 13.335 | I44: =C43-C44 -> -1.905 | J44: 0 | K44: =(I44^2+J44^2)^0.5 -> 1.905
C45: =C44 -> 3.81 | D45: =D67 -> 122.555 | F45: =IF($B43<>"",C45,0) -> 3.81 | G45: =IF($B43<>"",D45,0) -> 122.555 | I45: 0 | J45: -109.22 | K45: =(I45^2+J45^2)^0.5 -> 109.22
C46: =C43 -> 1.905 | D46: =D45 -> 122.555 | F46: =IF($B43<>"",C46,0) -> 1.905 | G46: =IF($B43<>"",D46,0) -> 122.555 | I46: 1.905 | J46: 0 | K46: =(I46^2+J46^2)^0.5 -> 1.905
C47: =C43 -> 1.905 | D47: =D43 -> 13.335 | F47: =IF($B43<>"",C47,0) -> 1.905 | G47: =IF($B43<>"",D47,0) -> 13.335 | I47: 0 | J47: 109.22 | K47: =(I47^2+J47^2)^0.5 -> 109.22
B49: =IF(Information!H6="x",Information!I6,"") -> Panel B, rear baffle | C49: =C40 -> 1.905 | D49: =D40 -> 122.555 | F49: =IF($B49<>"",C49,0) -> 1.905 | G49: =IF($B49<>"",D49,0) -> 122.555
C50: =C49+Information!D14 -> 3.81 | D50: =D49 -> 122.555 | F50: =IF($B49<>"",C50,0) -> 3.81 | G50: =IF($B49<>"",D50,0) -> 122.555 | I50: =C49-C50 -> -1.905 | J50: 0 | K50: =(I50^2+J50^2)^0.5 -> 1.905
C51: =C50 -> 3.81 | D51: =D8 -> 116.777 | F51: =IF($B49<>"",C51,0) -> 3.81 | G51: =IF($B49<>"",D51,0) -> 116.777 | I51: 0 | J51: 5.778 | K51: =(I51^2+J51^2)^0.5 -> 5.778
C52: =C49 -> 1.905 | D52: =D51 -> 116.777 | F52: =IF($B49<>"",C52,0) -> 1.905 | G52: =IF($B49<>"",D52,0) -> 116.777 | I52: 1.905 | J52: 0 | K52: =(I52^2+J52^2)^0.5 -> 1.905
C53: =C49 -> 1.905 | D53: =D49 -> 122.555 | F53: =IF($B49<>"",C53,0) -> 1.905 | G53: =IF($B49<>"",D53,0) -> 122.555 | I53: 0 | J53: -5.778 | K53: =(I53^2+J53^2)^0.5 -> 5.778
B55: =IF(Information!H6="x",Information!I6,"") -> Panel B, rear baffle | C55: =C46 -> 1.905 | D55: =D43 -> 13.335 | F55: =IF($B55<>"",C55,0) -> 1.905 | G55: =IF($B55<>"",D55,0) -> 13.335
C56: =C52 -> 1.905 | D56: =D13 -> 98.743 | F56: =IF($B55<>"",C56,0) -> 1.905 | G56: =IF($B55<>"",D56,0) -> 98.743 | I56: =C55-C56 -> 0 | J56: -85.408 | K56: =(I56^2+J56^2)^0.5 -> 85.408
C57: =C51 -> 3.81 | D57: =D56 -> 98.743 | F57: =IF($B55<>"",C57,0) -> 3.81 | G57: =IF($B55<>"",D57,0) -> 98.743 | I57: -1.905 | J57: 0 | K57: =(I57^2+J57^2)^0.5 -> 1.905
C58: =C44 -> 3.81 | D58: =D55 -> 13.335 | F58: =IF($B55<>"",C58,0) -> 3.81 | G58: =IF($B55<>"",D58,0) -> 13.335 | I58: 0 | J58: 85.408 | K58: =(I58^2+J58^2)^0.5 -> 85.408
C59: =C55 -> 1.905 | D59: =D55 -> 13.335 | F59: =IF($B55<>"",C59,0) -> 1.905 | G59: =IF($B55<>"",D59,0) -> 13.335 | I59: 1.905 | J59: 0 | K59: =(I59^2+J59^2)^0.5 -> 1.905
B61: =IF(Information!H17="x",Information!I7,"") -> Panel C, top, bottom | C61: 0 | D61: =D3 -> 0 | F61: =IF($B61<>"",C61,0) -> 0 | G61: =IF($B61<>"",D61,0) -> 0
C62: =C61+Information!D12 -> 38.1 | D62: =D61 -> 0 | F62: =IF($B61<>"",C62,0) -> 38.1 | G62: =IF($B61<>"",D62,0) -> 0 | I62: =C61-C62 -> -38.1 | J62: 0 | K62: =(I62^2+J62^2)^0.5 -> 38.1
C63: =C62 -> 38.1 | D63: =D62+Information!D14 -> 1.905 | F63: =IF($B61<>"",C63,0) -> 38.1 | G63: =IF($B61<>"",D63,0) -> 1.905 | I63: 0 | J63: -1.905 | K63: =(I63^2+J63^2)^0.5 -> 1.905
C64: =C61 -> 0 | D64: =D63 -> 1.905 | F64: =IF($B61<>"",C64,0) -> 0 | G64: =IF($B61<>"",D64,0) -> 1.905 | I64: 38.1 | J64: 0 | K64: =(I64^2+J64^2)^0.5 -> 38.1
C65: =C61 -> 0 | D65: =D61 -> 0 | F65: =IF($B61<>"",C65,0) -> 0 | G65: =IF($B61<>"",D65,0) -> 0 | I65: 0 | J65: 1.905 | K65: =(I65^2+J65^2)^0.5 -> 1.905
B67: =IF(Information!H7="x",Information!I7,"") -> Panel C, top, bottom | C67: =C61 -> 0 | D67: =D75 -> 122.555 | F67: =IF($B67<>"",C67,0) -> 0 | G67: =IF($B67<>"",D67,0) -> 122.555
C68: =C62 -> 38.1 | D68: =D67 -> 122.555 | F68: =IF($B67<>"",C68,0) -> 38.1 | G68: =IF($B67<>"",D68,0) -> 122.555 | I68: =C67-C68 -> -38.1 | J68: 0 | K68: =(I68^2+J68^2)^0.5 -> 38.1
C69: =C68 -> 38.1 | D69: =D68+Information!D38 -> 124.46 | F69: =IF($B67<>"",C69,0) -> 38.1 | G69: =IF($B67<>"",D69,0) -> 124.46 | I69: 0 | J69: -1.905 | K69: =(I69^2+J69^2)^0.5 -> 1.905
C70: =C67 -> 0 | D70: =D69 -> 124.46 | F70: =IF($B67<>"",C70,0) -> 0 | G70: =IF($B67<>"",D70,0) -> 124.46 | I70: 38.1 | J70: 0 | K70: =(I70^2+J70^2)^0.5 -> 38.1
C71: =C67 -> 0 | D71: =D67 -> 122.555 | F71: =IF($B67<>"",C71,0) -> 0 | G71: =IF($B67<>"",D71,0) -> 122.555 | I71: 0 | J71: 1.905 | K71: =(I71^2+J71^2)^0.5 -> 1.905
B73: =IF(Information!H8="x",Information!I8,"") -> Panel D, rear panel | C73: =C68 -> 38.1 | D73: =D63 -> 1.905 | F73: =IF($B73<>"",C73,0) -> 38.1 | G73: =IF($B73<>"",D73,0) -> 1.905
C74: =C73-Information!D39 -> 36.195 | D74: =D73 -> 1.905 | F74: =IF($B73<>"",C74,0) -> 36.195 | G74: =IF($B73<>"",D74,0) -> 1.905 | I74: =C73-C74 -> 1.905 | J74: 0 | K74: =(I74^2+J74^2)^0.5 -> 1.905
C75: =C74 -> 36.195 | D75: =D74+Information!D13-2*Information!D38 -> 122.555 | F75: =IF($B73<>"",C75,0) -> 36.195 | G75: =IF($B73<>"",D75,0) -> 122.555 | I75: 0 | J75: -120.65 | K75: =(I75^2+J75^2)^0.5 -> 120.65
C76: =C75+Information!D14 -> 38.1 | D76: =D75 -> 122.555 | F76: =IF($B73<>"",C76,0) -> 38.1 | G76: =IF($B73<>"",D76,0) -> 122.555 | I76: -1.905 | J76: 0 | K76: =(I76^2+J76^2)^0.5 -> 1.905
C77: =C73 -> 38.1 | D77: =D73 -> 1.905 | F77: =IF($B73<>"",C77,0) -> 38.1 | G77: =IF($B73<>"",D77,0) -> 1.905 | I77: 0 | J77: 120.65 | K77: =(I77^2+J77^2)^0.5 -> 120.65
B79: =IF(Information!H9="x",Information!I9,"") ->  | C79: ='Panel Calculations'!C67 -> 0 | D79: =D64 -> 1.905 | F79: =IF($B79<>"",C79,0) -> 0 | G79: =IF($B79<>"",D79,0) -> 0
C80: =C77 -> 38.1 | D80: =D77 -> 1.905 | F80: =IF($B79<>"",C80,0) -> 0 | G80: =IF($B79<>"",D80,0) -> 0 | I80: =C79-C80 -> -38.1 | J80: 0 | K80: =(I80^2+J80^2)^0.5 -> 38.1
C81: =C80 -> 38.1 | D81: =D76 -> 122.555 | F81: =IF($B79<>"",C81,0) -> 0 | G81: =IF($B79<>"",D81,0) -> 0 | I81: 0 | J81: -120.65 | K81: =(I81^2+J81^2)^0.5 -> 120.65
C82: =C79 -> 0 | D82: =D81 -> 122.555 | F82: =IF($B79<>"",C82,0) -> 0 | G82: =IF($B79<>"",D82,0) -> 0 | I82: 38.1 | J82: 0 | K82: =(I82^2+J82^2)^0.5 -> 38.1
C83: =C79 -> 0 | D83: =D79 -> 1.905 | F83: =IF($B79<>"",C83,0) -> 0 | G83: =IF($B79<>"",D83,0) -> 0 | I83: 0 | J83: 120.65 | K83: =(I83^2+J83^2)^0.5 -> 120.65
B85: =IF(Information!H10="x",Information!I10,"") -> Panel F, 1st internal | C85: =C64 -> 0 | D85: =D63+Information!D20 -> 11.43 | F85: =IF($B85<>"",C85,0) -> 0 | G85: =IF($B85<>"",D85,0) -> 11.43
C86: =C74-Information!D20 -> 26.67 | D86: =D85 -> 11.43 | F86: =IF($B85<>"",C86,0) -> 26.67 | G86: =IF($B85<>"",D86,0) -> 11.43 | I86: =C85-C86 -> -26.67 | J86: 0 | K86: =(I86^2+J86^2)^0.5 -> 26.67
C87: =C86 -> 26.67 | D87: =D86+Information!D41 -> 13.335 | F87: =IF($B85<>"",C87,0) -> 26.67 | G87: =IF($B85<>"",D87,0) -> 13.335 | I87: 0 | J87: -1.905 | K87: =(I87^2+J87^2)^0.5 -> 1.905
C88: =C85 -> 0 | D88: =D87 -> 13.335 | F88: =IF($B85<>"",C88,0) -> 0 | G88: =IF($B85<>"",D88,0) -> 13.335 | I88: 26.67 | J88: 0 | K88: =(I88^2+J88^2)^0.5 -> 26.67
C89: =C85 -> 0 | D89: =D85 -> 11.43 | F89: =IF($B85<>"",C89,0) -> 0 | G89: =IF($B85<>"",D89,0) -> 11.43 | I89: 0 | J89: 1.905 | K89: =(I89^2+J89^2)^0.5 -> 1.905
B91: =IF(Information!H11="x",Information!I11,"") -> Panel G, 2nd internal | C91: =C86 -> 26.67 | D91: =D87 -> 13.335 | F91: =IF($B91<>"",C91,0) -> 26.67 | G91: =IF($B91<>"",D91,0) -> 13.335
C92: =C91 -> 26.67 | D92: =D68-Information!D20 -> 113.03 | F92: =IF($B91<>"",C92,0) -> 26.67 | G92: =IF($B91<>"",D92,0) -> 113.03 | I92: =C91-C92 -> 0 | J92: =D91-D92 -> -99.695 | K92: =(I92^2+J92^2)^0.5 -> 99.695
C93: =C92-Information!D42 -> 24.765 | D93: =D92 -> 113.03 | F93: =IF($B91<>"",C93,0) -> 24.765 | G93: =IF($B91<>"",D93,0) -> 113.03 | I93: 1.905 | J93: 0 | K93: =(I93^2+J93^2)^0.5 -> 1.905
C94: =C93 -> 24.765 | D94: =D91 -> 13.335 | F94: =IF($B91<>"",C94,0) -> 24.765 | G94: =IF($B91<>"",D94,0) -> 13.335 | I94: 0 | J94: 99.695 | K94: =(I94^2+J94^2)^0.5 -> 99.695
C95: =C91 -> 26.67 | D95: =D91 -> 13.335 | F95: =IF($B91<>"",C95,0) -> 26.67 | G95: =IF($B91<>"",D95,0) -> 13.335 | I95: -1.905 | J95: 0 | K95: =(I95^2+J95^2)^0.5 -> 1.905
B97: =IF(Information!H12="x",Information!I12,"") -> Panel H, 2nd internal | C97: =C93-Information!D20 -> 15.24 | D97: =D81 -> 122.555 | F97: =IF($B97<>"",C97,0) -> 15.24 | G97: =IF($B97<>"",D97,0) -> 122.555
C98: =C97 -> 15.24 | D98: =D87+Information!D20 -> 22.86 | F98: =IF($B97<>"",C98,0) -> 15.24 | G98: =IF($B97<>"",D98,0) -> 22.86 | I98: =C97-C98 -> 0 | J98: =D97-D98 -> 99.695 | K98: =(I98^2+J98^2)^0.5 -> 99.695
C99: =C98-Information!D36 -> 13.335 | D99: =D98 -> 22.86 | F99: =IF($B97<>"",C99,0) -> 13.335 | G99: =IF($B97<>"",D99,0) -> 22.86 | I99: 1.905 | J99: 0 | K99: =(I99^2+J99^2)^0.5 -> 1.905
C100: =C99 -> 13.335 | D100: =D97 -> 122.555 | F100: =IF($B97<>"",C100,0) -> 13.335 | G100: =IF($B97<>"",D100,0) -> 122.555 | I100: 0 | J100: -99.695 | K100: =(I100^2+J100^2)^0.5 -> 99.695
C101: =C97 -> 15.24 | D101: =D97 -> 122.555 | F101: =IF($B97<>"",C101,0) -> 15.24 | G101: =IF($B97<>"",D101,0) -> 122.555 | I101: -1.905 | J101: 0 | K101: =(I101^2+J101^2)^0.5 -> 1.905

Sheet Path Calculations
I3: =I6 -> 8.5725 | J3: =J6 -> 122.555
B4: Path Calculations | D4: x | E4: y | G4: x | H4: y | J4: d | K4: x | L4: y | M4: dS | N4: d | O4: L | P4: s
D6: ='Panel Calculations'!$C$99 -> 13.335 | E6: ='Panel Calculations'!$D$67 -> 122.555 | G6: =IF(Information!$H$16="x",D6,0) -> 13.335 | H6: =IF(Information!$H$16="x",E6,0) -> 122.555 | I6: =SUM(D6:D7)/2 -> 8.5725 | J6: =SUM(E6:E7)/2 -> 122.555 | K6: =IF(Information!$H$15="x",I6,0) -> 8.5725 | L6: =IF(Information!$H$15="x",J6,0) -> 122.555 | N6: =N3 -> 0 | O6: =O21 -> 0 | P6: =P21 -> 0
C7: S1 | D7: ='Panel Calculations'!$C$44 -> 3.81 | E7: =E6 -> 122.555 | G7: =IF(Information!$H$16="x",D7,0) -> 3.81 | H7: =IF(Information!$H$16="x",E7,0) -> 122.555 | K7: =K6 -> 8.5725 | L7: =L6 -> 122.555 | N7: =N6 -> 0 | O7: =O6 -> 0 | P7: 0
K8: =K7 -> 8.5725 | L8: =L7 -> 122.555 | N8: =((I6-I3)^2+(J6-J3)^2)^0.5 -> 0 | O8: =O5+N8 -> 0 | P8: =Information!$D$19*((D6-D7)^2+(E6-E7)^2)^0.5 -> 205.64475
D9: ='Panel Calculations'!$C$99 -> 13.335 | E9: ='Panel Calculations'!$D$99 -> 22.86 | G9: =IF(Information!$H$16="x",D9,0) -> 13.335 | H9: =IF(Information!$H$16="x",E9,0) -> 22.86 | I9: =SUM(D9:D10)/2 -> 8.5725 | J9: =SUM(E9:E10)/2 -> 22.86 | K9: =IF(Information!$H$15="x",I9,0) -> 8.5725 | L9: =IF(Information!$H$15="x",J9,0) -> 22.86 | N9: =N6 -> 0 | O9: =O24 -> 0 | P9: =P27 -> 0
D10: ='Panel Calculations'!$C$44 -> 3.81 | E10: =E9 -> 22.86 | G10: =IF(Information!$H$16="x",D10,0) -> 3.81 | H10: =IF(Information!$H$16="x",E10,0) -> 22.86 | K10: =K9 -> 8.5725 | L10: =L9 -> 22.86 | N10: =N9 -> 0 | O10: 0 | P10: =P9 -> 0
K11: =K10 -> 8.5725 | L11: =L10 -> 22.86 | N11: =((I9-I6)^2+(J9-J6)^2)^0.5 -> 99.695 | O11: =O8+N11 -> 99.695 | P11: =Information!$D$19*((D9-D10)^2+(E9-E10)^2)^0.5 -> 205.64475
D12: ='Panel Calculations'!$C$99 -> 13.335 | E12: ='Panel Calculations'!$D$99 -> 22.86 | G12: =IF(Information!$H$16="x",D12,0) -> 13.335 | H12: =IF(Information!$H$16="x",E12,0) -> 22.86 | I12: =SUM(D12:D13)/2 -> 8.5725 | J12: =SUM(E12:E13)/2 -> 20.47875 | K12: =IF(Information!$H$15="x",I12,0) -> 8.5725 | L12: =IF(Information!$H$15="x",J12,0) -> 20.47875 | N12: =N9 -> 0 | O12: =O30 -> 0 | P12: =P30 -> 0
D13: ='Panel Calculations'!$C$44 -> 3.81 | E13: =(E15+E16)/2 -> 18.0975 | G13: =IF(Information!$H$16="x",D13,0) -> 3.81 | H13: =IF(Information!$H$16="x",E13,0) -> 18.0975 | K13: =K12 -> 8.5725 | L13: =L12 -> 20.47875 | N13: =N12 -> 0 | O13: =O12 -> 0 | P13: 0
K14: =K13 -> 8.5725 | L14: =L13 -> 20.47875 | N14: =((I12-I9)^2+(J12-J9)^2)^0.5 -> 2.38125 | O14: =O11+N14 -> 102.07625 | P14: =Information!$D$19*((D12-D13)^2+(E12-E13)^2)^0.5 -> 229.9178201
D15: ='Panel Calculations'!$C$99 -> 13.335 | E15: ='Panel Calculations'!$D$99 -> 22.86 | G15: =IF(Information!$H$16="x",D15,0) -> 13.335 | H15: =IF(Information!$H$16="x",E15,0) -> 22.86 | I15: =SUM(D15:D16)/2 -> 10.95375 | J15: =SUM(E15:E16)/2 -> 18.0975 | K15: =IF(Information!$H$15="x",I15,0) -> 10.95375 | L15: =IF(Information!$H$15="x",J15,0) -> 18.0975 | N15: =N12 -> 0 | O15: =O33 -> 0 | P15: =P33 -> 0
D16: =(D15+'Panel Calculations'!$C$44)/2 -> 8.5725 | E16: ='Panel Calculations'!$D$87 -> 13.335 | G16: =IF(Information!$H$16="x",D16,0) -> 8.5725 | H16: =IF(Information!$H$16="x",E16,0) -> 13.335 | K16: =K15 -> 10.95375 | L16: =L15 -> 18.0975 | N16: =N15 -> 0 | O16: =O15 -> 0 | P16: 0
K17: =K16 -> 10.95375 | L17: =L16 -> 18.0975 | N17: =((I15-I12)^2+(J15-J12)^2)^0.5 -> 3.367596045 | O17: =O14+N17 -> 105.443846 | P17: =Information!$D$19*((D15-D16)^2+(E15-E16)^2)^0.5 -> 229.9178201
D18: ='Panel Calculations'!$C$99 -> 13.335 | E18: ='Panel Calculations'!$D$99 -> 22.86 | G18: =IF(Information!$H$16="x",D18,0) -> 13.335 | H18: =IF(Information!$H$16="x",E18,0) -> 22.86 | I18: =SUM(D18:D19)/2 -> 13.335 | J18: =SUM(E18:E19)/2 -> 18.0975 | K18: =IF(Information!$H$15="x",I18,0) -> 13.335 | L18: =IF(Information!$H$15="x",J18,0) -> 18.0975 | N18: =N15 -> 0 | O18: =O36 -> 0 | P18: =P36 -> 0
D19: =D18 -> 13.335 | E19: ='Panel Calculations'!$D$87 -> 13.335 | G19: =IF(Information!$H$16="x",D19,0) -> 13.335 | H19: =IF(Information!$H$16="x",E19,0) -> 13.335 | K19: =K18 -> 13.335 | L19: =L18 -> 18.0975 | N19: =N18 -> 0 | O19: =O18 -> 0 | P19: 0
K20: =K19 -> 13.335 | L20: =L19 -> 18.0975 | N20: =((I18-I15)^2+(J18-J15)^2)^0.5 -> 2.38125 | O20: =O17+N20 -> 107.825096 | P20: =Information!$D$19*((D18-D19)^2+(E18-E19)^2)^0.5 -> 205.64475
D21: ='Panel Calculations'!$C$98 -> 15.24 | E21: ='Panel Calculations'!$D$98 -> 22.86 | G21: =IF(Information!$H$16="x",D21,0) -> 15.24 | H21: =IF(Information!$H$16="x",E21,0) -> 22.86 | I21: =SUM(D21:D22)/2 -> 15.24 | J21: =SUM(E21:E22)/2 -> 18.0975 | K21: =IF(Information!$H$15="x",I21,0) -> 15.24 | L21: =IF(Information!$H$15="x",J21,0) -> 18.0975 | N21: =N18 -> 0 | O21: =O39 -> 0 | P21: =P39 -> 0
D22: =D21 -> 15.24 | E22: ='Panel Calculations'!$D$87 -> 13.335 | G22: =IF(Information!$H$16="x",D22,0) -> 15.24 | H22: =IF(Information!$H$16="x",E22,0) -> 13.335 | K22: =K21 -> 15.24 | L22: =L21 -> 18.0975 | N22: =N21 -> 0 | O22: =O21 -> 0 | P22: 0
K23: =K22 -> 15.24 | L23: =L22 -> 18.0975 | N23: =((I21-I18)^2+(J21-J18)^2)^0.5 -> 1.905 | O23: =O20+N23 -> 109.730096 | P23: =Information!$D$19*((D21-D22)^2+(E21-E22)^2)^0.5 -> 205.64475
D24: ='Panel Calculations'!$C$98 -> 15.24 | E24: ='Panel Calculations'!$D$98 -> 22.86 | G24: =IF(Information!$H$16="x",D24,0) -> 15.24 | H24: =IF(Information!$H$16="x",E24,0) -> 22.86 | I24: =SUM(D24:D25)/2 -> 17.62125 | J24: =SUM(E24:E25)/2 -> 18.0975 | K24: =IF(Information!$H$15="x",I24,0) -> 17.62125 | L24: =IF(Information!$H$15="x",J24,0) -> 18.0975 | N24: =N21 -> 0 | O24: =O42 -> 0 | P24: =P42 -> 0
D25: =(D24+D28)/2 -> 20.0025 | E25: ='Panel Calculations'!$D$87 -> 13.335 | G25: =IF(Information!$H$16="x",D25,0) -> 20.0025 | H25: =IF(Information!$H$16="x",E25,0) -> 13.335 | K25: =K24 -> 17.62125 | L25: =L24 -> 18.0975 | N25: =N24 -> 0 | O25: =O24 -> 0 | P25: 0
K26: =K25 -> 17.62125 | L26: =L25 -> 18.0975 | N26: =((I24-I21)^2+(J24-J21)^2)^0.5 -> 2.38125 | O26: =O23+N26 -> 112.111346 | P26: =Information!$D$19*((D24-D25)^2+(E24-E25)^2)^0.5 -> 229.9178201
D27: ='Panel Calculations'!$C$98 -> 15.24 | E27: ='Panel Calculations'!$D$98 -> 22.86 | G27: =IF(Information!$H$16="x",D27,0) -> 15.24 | H27: =IF(Information!$H$16="x",E27,0) -> 22.86 | I27: =SUM(D27:D28)/2 -> 20.0025 | J27: =SUM(E27:E28)/2 -> 20.47875 | K27: =IF(Information!$H$15="x",I27,0) -> 20.0025 | L27: =IF(Information!$H$15="x",J27,0) -> 20.47875 | N27: =N24 -> 0 | O27: =O45 -> 0 | P27: =P45 -> 0
D28: =D31 -> 24.765 | E28: =(E27+'Panel Calculations'!$D$87)/2 -> 18.0975 | G28: =IF(Information!$H$16="x",D28,0) -> 24.765 | H28: =IF(Information!$H$16="x",E28,0) -> 18.0975 | K28: =K27 -> 20.0025 | L28: =L27 -> 20.47875 | N28: =N27 -> 0 | O28: =O27 -> 0 | P28: 0
K29: =K28 -> 20.0025 | L29: =L28 -> 20.47875 | N29: =((I27-I24)^2+(J27-J24)^2)^0.5 -> 3.367596045 | O29: =O26+N29 -> 115.4789421 | P29: =Information!$D$19*((D27-D28)^2+(E27-E28)^2)^0.5 -> 229.9178201
D30: ='Panel Calculations'!$C$98 -> 15.24 | E30: ='Panel Calculations'!$D$98 -> 22.86 | G30: =IF(Information!$H$16="x",D30,0) -> 15.24 | H30: =IF(Information!$H$16="x",E30,0) -> 22.86 | I30: =SUM(D30:D31)/2 -> 20.0025 | J30: =SUM(E30:E31)/2 -> 22.86 | K30: =IF(Information!$H$15="x",I30,0) -> 20.0025 | L30: =IF(Information!$H$15="x",J30,0) -> 22.86 | N30: =N27 -> 0 | O30: =O48 -> 0 | P30: =P48 -> 0
D31: ='Panel Calculations'!$C$94 -> 24.765 | E31: =E30 -> 22.86 | G31: =IF(Information!$H$16="x",D31,0) -> 24.765 | H31: =IF(Information!$H$16="x",E31,0) -> 22.86 | K31: =K30 -> 20.0025 | L31: =L30 -> 22.86 | N31: =N30 -> 0 | O31: =O30 -> 0 | P31: 0
K32: =K31 -> 20.0025 | L32: =L31 -> 22.86 | N32: =((I30-I27)^2+(J30-J27)^2)^0.5 -> 2.38125 | O32: =O29+N32 -> 117.8601921 | P32: =Information!$D$19*((D30-D31)^2+(E30-E31)^2)^0.5 -> 205.64475
D33: ='Panel Calculations'!$C$93 -> 24.765 | E33: ='Panel Calculations'!$D$93 -> 113.03 | G33: =IF(Information!$H$16="x",D33,0) -> 24.765 | H33: =IF(Information!$H$16="x",E33,0) -> 113.03 | I33: =SUM(D33:D34)/2 -> 20.0025 | J33: =SUM(E33:E34)/2 -> 113.03 | K33: =IF(Information!$H$15="x",I33,0) -> 20.0025 | L33: =IF(Information!$H$15="x",J33,0) -> 113.03 | N33: =N30 -> 0 | O33: =O51 -> 0 | P33: =P51 -> 0
D34: =D37 -> 15.24 | E34: ='Panel Calculations'!$D$93 -> 113.03 | G34: =IF(Information!$H$16="x",D34,0) -> 15.24 | H34: =IF(Information!$H$16="x",E34,0) -> 113.03 | K34: =K33 -> 20.0025 | L34: =L33 -> 113.03 | N34: =N33 -> 0 | O34: =O33 -> 0 | P34: 0
K35: =K34 -> 20.0025 | L35: =L34 -> 113.03 | N35: =((I33-I30)^2+(J33-J30)^2)^0.5 -> 90.17 | O35: =O32+N35 -> 208.0301921 | P35: =Information!$D$19*((D33-D34)^2+(E33-E34)^2)^0.5 -> 205.64475
D36: ='Panel Calculations'!$C$93 -> 24.765 | E36: ='Panel Calculations'!$D$93 -> 113.03 | G36: =IF(Information!$H$16="x",D36,0) -> 24.765 | H36: =IF(Information!$H$16="x",E36,0) -> 113.03 | I36: =SUM(D36:D37)/2 -> 20.0025 | J36: =SUM(E36:E37)/2 -> 115.41125 | K36: =IF(Information!$H$15="x",I36,0) -> 20.0025 | L36: =IF(Information!$H$15="x",J36,0) -> 115.41125 | N36: =N33 -> 0 | O36: =O54 -> 0 | P36: =P54 -> 0
D37: ='Panel Calculations'!$C$97 -> 15.24 | E37: =(E39+E40)/2 -> 117.7925 | G37: =IF(Information!$H$16="x",D37,0) -> 15.24 | H37: =IF(Information!$H$16="x",E37,0) -> 117.7925 | K37: =K36 -> 20.0025 | L37: =L36 -> 115.41125 | N37: =N36 -> 0 | O37: =O36 -> 0 | P37: 0
K38: =K37 -> 20.0025 | L38: =L37 -> 115.41125 | N38: =((I36-I33)^2+(J36-J33)^2)^0.5 -> 2.38125 | O38: =O35+N38 -> 210.4114421 | P38: =Information!$D$19*((D36-D37)^2+(E36-E37)^2)^0.5 -> 229.9178201
D39: ='Panel Calculations'!$C$93 -> 24.765 | E39: ='Panel Calculations'!$D$93 -> 113.03 | G39: =IF(Information!$H$16="x",D39,0) -> 24.765 | H39: =IF(Information!$H$16="x",E39,0) -> 113.03 | I39: =SUM(D39:D40)/2 -> 22.38375 | J39: =SUM(E39:E40)/2 -> 117.7925 | K39: =IF(Information!$H$15="x",I39,0) -> 22.38375 | L39: =IF(Information!$H$15="x",J39,0) -> 117.7925 | N39: =N36 -> 0 | O39: =O57 -> 0 | P39: =P57 -> 0
D40: =(D39+'Panel Calculations'!$C$97)/2 -> 20.0025 | E40: ='Panel Calculations'!$D$68 -> 122.555 | G40: =IF(Information!$H$16="x",D40,0) -> 20.0025 | H40: =IF(Information!$H$16="x",E40,0) -> 122.555 | K40: =K39 -> 22.38375 | L40: =L39 -> 117.7925 | N40: =N39 -> 0 | O40: =O39 -> 0 | P40: 0
K41: =K40 -> 22.38375 | L41: =L40 -> 117.7925 | N41: =((I39-I36)^2+(J39-J36)^2)^0.5 -> 3.367596045 | O41: =O38+N41 -> 213.7790381 | P41: =Information!$D$19*((D39-D40)^2+(E39-E40)^2)^0.5 -> 229.9178201
D42: ='Panel Calculations'!$C$93 -> 24.765 | E42: ='Panel Calculations'!$D$93 -> 113.03 | G42: =IF(Information!$H$16="x",D42,0) -> 24.765 | H42: =IF(Information!$H$16="x",E42,0) -> 113.03 | I42: =SUM(D42:D43)/2 -> 24.765 | J42: =SUM(E42:E43)/2 -> 117.7925 | K42: =IF(Information!$H$15="x",I42,0) -> 24.765 | L42: =IF(Information!$H$15="x",J42,0) -> 117.7925 | N42: =N39 -> 0 | O42: =O60 -> 0 | P42: =P60 -> 0
D43: =D42 -> 24.765 | E43: ='Panel Calculations'!$D$68 -> 122.555 | G43: =IF(Information!$H$16="x",D43,0) -> 24.765 | H43: =IF(Information!$H$16="x",E43,0) -> 122.555 | K43: =K42 -> 24.765 | L43: =L42 -> 117.7925 | N43: =N42 -> 0 | O43: =O42 -> 0 | P43: 0
K44: =K43 -> 24.765 | L44: =L43 -> 117.7925 | N44: =((I42-I39)^2+(J42-J39)^2)^0.5 -> 2.38125 | O44: =O41+N44 -> 216.1602881 | P44: =Information!$D$19*((D42-D43)^2+(E42-E43)^2)^0.5 -> 205.64475
D45: =D48 -> 26.67 | E45: =E48 -> 113.03 | G45: =IF(Information!$H$16="x",D45,0) -> 26.67 | H45: =IF(Information!$H$16="x",E45,0) -> 113.03 | I45: =SUM(D45:D46)/2 -> 26.67 | J45: =SUM(E45:E46)/2 -> 117.7925 | K45: =IF(Information!$H$15="x",I45,0) -> 26.67 | L45: =IF(Information!$H$15="x",J45,0) -> 117.7925 | N45: =N42 -> 0 | O45: =O63 -> 0 | P45: =P63 -> 0
D46: =D45 -> 26.67 | E46: ='Panel Calculations'!$D$68 -> 122.555 | G46: =IF(Information!$H$16="x",D46,0) -> 26.67 | H46: =IF(Information!$H$16="x",E46,0) -> 122.555 | K46: =K45 -> 26.67 | L46: =L45 -> 117.7925 | N46: =N45 -> 0 | O46: =O45 -> 0 | P46: 0
K47: =K46 -> 26.67 | L47: =L46 -> 117.7925 | N47: =((I45-I42)^2+(J45-J42)^2)^0.5 -> 1.905 | O47: =O44+N47 -> 218.0652881 | P47: =Information!$D$19*((D45-D46)^2+(E45-E46)^2)^0.5 -> 205.64475
D48: =D51 -> 26.67 | E48: =E51 -> 113.03 | G48: =IF(Information!$H$16="x",D48,0) -> 26.67 | H48: =IF(Information!$H$16="x",E48,0) -> 113.03 | I48: =SUM(D48:D49)/2 -> 26.67 | J48: =SUM(E48:E49)/2 -> 117.7925 | K48: =IF(Information!$H$15="x",I48,0) -> 26.67 | L48: =IF(Information!$H$15="x",J48,0) -> 117.7925 | N48: =N45 -> 0 | O48: =O66 -> 0 | P48: =P66 -> 0
D49: =D48 -> 26.67 | E49: ='Panel Calculations'!$D$68 -> 122.555 | G49: =IF(Information!$H$16="x",D49,0) -> 26.67 | H49: =IF(Information!$H$16="x",E49,0) -> 122.555 | K49: =K48 -> 26.67 | L49: =L48 -> 117.7925 | N49: =N48 -> 0 | O49: =O48 -> 0 | P49: 0
K50: =K49 -> 26.67 | L50: =L49 -> 117.7925 | N50: =((I48-I45)^2+(J48-J45)^2)^0.5 -> 0 | O50: =O47+N50 -> 218.0652881 | P50: =Information!$D$19*((D48-D49)^2+(E48-E49)^2)^0.5 -> 205.64475
D51: ='Panel Calculations'!$C$92 -> 26.67 | E51: ='Panel Calculations'!$D$92 -> 113.03 | G51: =IF(Information!$H$16="x",D51,0) -> 26.67 | H51: =IF(Information!$H$16="x",E51,0) -> 113.03 | I51: =SUM(D51:D52)/2 -> 29.05125 | J51: =SUM(E51:E52)/2 -> 117.7925 | K51: =IF(Information!$H$15="x",I51,0) -> 29.05125 | L51: =IF(Information!$H$15="x",J51,0) -> 117.7925 | N51: =N48 -> 0 | O51: =O69 -> 0 | P51: =P69 -> 0
D52: =(D51+D55)/2 -> 31.4325 | E52: ='Panel Calculations'!$D$68 -> 122.555 | G52: =IF(Information!$H$16="x",D52,0) -> 31.4325 | H52: =IF(Information!$H$16="x",E52,0) -> 122.555 | K52: =K51 -> 29.05125 | L52: =L51 -> 117.7925 | N52: =N51 -> 0 | O52: =O51 -> 0 | P52: 0
K53: =K52 -> 29.05125 | L53: =L52 -> 117.7925 | N53: =((I51-I48)^2+(J51-J48)^2)^0.5 -> 2.38125 | O53: =O50+N53 -> 220.4465381 | P53: =Information!$D$19*((D51-D52)^2+(E51-E52)^2)^0.5 -> 229.9178201
D54: ='Panel Calculations'!$C$92 -> 26.67 | E54: ='Panel Calculations'!$D$92 -> 113.03 | G54: =IF(Information!$H$16="x",D54,0) -> 26.67 | H54: =IF(Information!$H$16="x",E54,0) -> 113.03 | I54: =SUM(D54:D55)/2 -> 31.4325 | J54: =SUM(E54:E55)/2 -> 115.41125 | K54: =IF(Information!$H$15="x",I54,0) -> 31.4325 | L54: =IF(Information!$H$15="x",J54,0) -> 115.41125 | N54: =N51 -> 0 | O54: =O72 -> 0 | P54: =P72 -> 0
D55: ='Panel Calculations'!$C$75 -> 36.195 | E55: =('Panel Calculations'!D82+E54)/2 -> 117.7925 | G55: =IF(Information!$H$16="x",D55,0) -> 36.195 | H55: =IF(Information!$H$16="x",E55,0) -> 117.7925 | K55: =K54 -> 31.4325 | L55: =L54 -> 115.41125 | N55: =N54 -> 0 | O55: =O54 -> 0 | P55: 0
K56: =K55 -> 31.4325 | L56: =L55 -> 115.41125 | N56: =((I54-I51)^2+(J54-J51)^2)^0.5 -> 3.367596045 | O56: =O53+N56 -> 223.8141342 | P56: =Information!$D$19*((D54-D55)^2+(E54-E55)^2)^0.5 -> 229.9178201
D57: ='Panel Calculations'!C74 -> 36.195 | E57: ='Panel Calculations'!D87 -> 13.335 | G57: =IF(Information!$H$16="x",D57,0) -> 36.195 | H57: =IF(Information!$H$16="x",E57,0) -> 13.335 | I57: =SUM(D57:D58)/2 -> 31.4325 | J57: =SUM(E57:E58)/2 -> 13.335 | K57: =IF(Information!$H$15="x",I57,0) -> 31.4325 | L57: =IF(Information!$H$15="x",J57,0) -> 13.335 | N57: =N54 -> 0 | O57: 0 | P57: 0
D58: ='Panel Calculations'!C86 -> 26.67 | E58: =E57 -> 13.335 | G58: =IF(Information!$H$16="x",D58,0) -> 26.67 | H58: =IF(Information!$H$16="x",E58,0) -> 13.335 | K58: =K57 -> 31.4325 | L58: =L57 -> 13.335 | N58: =N57 -> 0 | O58: =O57 -> 0 | P58: =P57 -> 0
K59: =K58 -> 31.4325 | L59: =L58 -> 13.335 | N59: =((I57-I54)^2+(J57-J54)^2)^0.5 -> 102.07625 | O59: =O56+N59 -> 325.8903842 | P59: =Information!$D$19*((D57-D58)^2+(E57-E58)^2)^0.5 -> 205.64475
D60: ='Panel Calculations'!C74 -> 36.195 | E60: ='Panel Calculations'!D86 -> 11.43 | G60: =IF(Information!$H$16="x",D60,0) -> 36.195 | H60: =IF(Information!$H$16="x",E60,0) -> 11.43 | I60: =SUM(D60:D61)/2 -> 31.4325 | J60: =SUM(E60:E61)/2 -> 11.43 | K60: =IF(Information!$H$15="x",I60,0) -> 31.4325 | L60: =IF(Information!$H$15="x",J60,0) -> 11.43 | N60: =N57 -> 0 | O60: =O57 -> 0 | P60: =P57 -> 0
D61: =D58 -> 26.67 | E61: =E60 -> 11.43 | G61: =IF(Information!$H$16="x",D61,0) -> 26.67 | H61: =IF(Information!$H$16="x",E61,0) -> 11.43 | K61: =K60 -> 31.4325 | L61: =L60 -> 11.43 | N61: =N60 -> 0 | O61: =O60 -> 0 | P61: =P60 -> 0
K62: =K61 -> 31.4325 | L62: =L61 -> 11.43 | N62: =((I60-I57)^2+(J60-J57)^2)^0.5 -> 1.905 | O62: =O59+N62 -> 327.7953842 | P62: =Information!$D$19*((D60-D61)^2+(E60-E61)^2)^0.5 -> 205.64475
D63: =D60 -> 36.195 | E63: =(E61+'Panel Calculations'!D74)/2 -> 6.6675 | G63: =IF(Information!$H$16="x",D63,0) -> 36.195 | H63: =IF(Information!$H$16="x",E63,0) -> 6.6675 | I63: =SUM(D63:D64)/2 -> 31.4325 | J63: =SUM(E63:E64)/2 -> 9.04875 | K63: =IF(Information!$H$15="x",I63,0) -> 31.4325 | L63: =IF(Information!$H$15="x",J63,0) -> 9.04875 | N63: =N60 -> 0 | O63: =O60 -> 0 | P63: =P60 -> 0
D64: =D61 -> 26.67 | E64: =E67 -> 11.43 | G64: =IF(Information!$H$16="x",D64,0) -> 26.67 | H64: =IF(Information!$H$16="x",E64,0) -> 11.43 | K64: =K63 -> 31.4325 | L64: =L63 -> 9.04875 | N64: =N63 -> 0 | O64: =O63 -> 0 | P64: =P63 -> 0
K65: =K64 -> 31.4325 | L65: =L64 -> 9.04875 | N65: =((I63-I60)^2+(J63-J60)^2)^0.5 -> 2.38125 | O65: =O62+N65 -> 330.1766342 | P65: =Information!$D$19*((D63-D64)^2+(E63-E64)^2)^0.5 -> 229.9178201
D66: =(D67+'Panel Calculations'!C74)/2 -> 31.4325 | E66: ='Panel Calculations'!D74 -> 1.905 | G66: =IF(Information!$H$16="x",D66,0) -> 31.4325 | H66: =IF(Information!$H$16="x",E66,0) -> 1.905 | I66: =SUM(D66:D67)/2 -> 29.05125 | J66: =SUM(E66:E67)/2 -> 6.6675 | K66: =IF(Information!$H$15="x",I66,0) -> 29.05125 | L66: =IF(Information!$H$15="x",J66,0) -> 6.6675 | N66: =N63 -> 0 | O66: =O63 -> 0 | P66: =P63 -> 0
D67: =D64 -> 26.67 | E67: =E70 -> 11.43 | G67: =IF(Information!$H$16="x",D67,0) -> 26.67 | H67: =IF(Information!$H$16="x",E67,0) -> 11.43 | K67: =K66 -> 29.05125 | L67: =L66 -> 6.6675 | N67: =N66 -> 0 | O67: =O66 -> 0 | P67: =P66 -> 0
K68: =K67 -> 29.05125 | L68: =L67 -> 6.6675 | N68: =((I66-I63)^2+(J66-J63)^2)^0.5 -> 3.367596045 | O68: =O65+N68 -> 333.5442302 | P68: =Information!$D$19*((D66-D67)^2+(E66-E67)^2)^0.5 -> 229.9178201
D69: =D70 -> 26.67 | E69: ='Panel Calculations'!D77 -> 1.905 | G69: =IF(Information!$H$16="x",D69,0) -> 26.67 | H69: =IF(Information!$H$16="x",E69,0) -> 1.905 | I69: =SUM(D69:D70)/2 -> 26.67 | J69: =SUM(E69:E70)/2 -> 6.6675 | K69: =IF(Information!$H$15="x",I69,0) -> 26.67 | L69: =IF(Information!$H$15="x",J69,0) -> 6.6675 | N69: =N66 -> 0 | O69: =O66 -> 0 | P69: =P66 -> 0
D70: =D67 -> 26.67 | E70: =E73 -> 11.43 | G70: =IF(Information!$H$16="x",D70,0) -> 26.67 | H70: =IF(Information!$H$16="x",E70,0) -> 11.43 | K70: =K69 -> 26.67 | L70: =L69 -> 6.6675 | N70: =N69 -> 0 | O70: =O69 -> 0 | P70: =P69 -> 0
K71: =K70 -> 26.67 | L71: =L70 -> 6.6675 | N71: =((I69-I66)^2+(J69-J66)^2)^0.5 -> 2.38125 | O71: =O68+N71 -> 335.9254802 | P71: =Information!$D$19*((D69-D70)^2+(E69-E70)^2)^0.5 -> 205.64475
D72: =D73 -> 0 | E72: ='Panel Calculations'!D64 -> 1.905 | G72: =IF(Information!$H$16="x",D72,0) -> 0 | H72: =IF(Information!$H$16="x",E72,0) -> 1.905 | I72: =SUM(D72:D73)/2 -> 0 | J72: =SUM(E72:E73)/2 -> 6.6675 | K72: =IF(Information!$H$15="x",I72,0) -> 0 | L72: =IF(Information!$H$15="x",J72,0) -> 6.6675 | N72: =N69 -> 0 | O72: =O69 -> 0 | P72: =P69 -> 0
C73: S3 | D73: ='Panel Calculations'!C71 -> 0 | E73: ='Panel Calculations'!D85 -> 11.43 | G73: =IF(Information!$H$16="x",D73,0) -> 0 | H73: =IF(Information!$H$16="x",E73,0) -> 11.43 | K73: =K72 -> 0 | L73: =L72 -> 6.6675 | N73: =N72 -> 0 | O73: 0 | P73: =P72 -> 0
K74: =K73 -> 0 | L74: =L73 -> 6.6675 | N74: =((I72-I69)^2+(J72-J69)^2)^0.5 -> 26.67 | O74: =O71+N74 -> 362.5954802 | P74: =Information!$D$19*((D72-D73)^2+(E72-E73)^2)^0.5 -> 205.64475
